fUSD/lending_fUSD_20240725
["ID","MTS","AMOUNT","RATE_DAILY","PERIOD"]
[333160363,1721895054975,-500.0,0.00010995,2]
[333160364,1721895054985,-500.0,0.00010995,2]
[333160365,1721895054994,-500.0,0.00010995,2]
[333160366,1721895055004,-500.0,0.00010995,2]
[333160367,1721895055013,-500.0,0.00010995,2]
[333160368,1721895055022,-500.0,0.00010995,2]
[333160369,1721895055031,-500.0,0.00010995,2]
[333160370,1721895055041,-1572.32,0.00010995,2]
[333160371,1721895055050,-500.0,0.00010995,2]
[333160372,1721895055059,-896.85,0.00010995,2]
[333160373,1721895055069,-500.92,0.00010995,2]
[333160374,1721895055078,-500.0,0.00010995,2]
[333160375,1721895055087,-500.0,0.00010995,2]
[333160376,1721895055097,-2636.17,0.00010995,2]
[333160377,1721895055106,-500.0,0.00010995,2]
[333160378,1721895055119,-1454.16,0.00010995,2]
[333160379,1721895055132,-500.0,0.00010995,2]
[333160380,1721895055142,-500.0,0.00010995,2]
[333160381,1721895055152,-565.08,0.00010995,2]
[333160382,1721895055162,-555.33,0.00010995,2]
[333160383,1721895055172,-1663.27,0.00010995,2]
[333160384,1721895055182,-932.58,0.00010995,2]
[333160385,1721895055192,-500.0,0.00010995,2]
[333160386,1721895055202,-910.05,0.00010995,2]
[333160387,1721895055212,-1707.1,0.00010995,2]
[333160388,1721895055221,-500.0,0.00010995,2]
[333160389,1721895055231,-500.0,0.00010995,2]
[333160390,1721895055240,-1232.44,0.00010995,2]
[333160391,1721895055250,-473.37544777,0.00010995,2]
[333160392,1721895055260,-500.0,0.00010996,2]
[333160393,1721895055270,-500.0,0.00010996,2]
[333160394,1721895055282,-959.5,0.00010996,2]
[333160395,1721895055293,-959.5,0.00010996,2]
[333160396,1721895055302,-1117.95,0.00010996,2]
[333160397,1721895055311,-1117.95,0.00010996,2]
[333160398,1721895055321,-500.0,0.00010996,2]
[333160399,1721895055330,-177.6,0.00010996,2]
[333160400,1721895055340,-756.46,0.00010996,2]
[333160401,1721895055349,-756.46,0.00010996,2]
[333160402,1721895055358,-1190.2,0.00010996,2]
[333160403,1721895055368,-1190.2,0.00010996,2]
[333160404,1721895055377,-500.0,0.00010996,2]
[333160405,1721895055387,-500.0,0.00010996,2]
[333160406,1721895055396,-636.51,0.00010996,2]
[333160407,1721895055406,-636.51,0.00010996,2]
[333160408,1721895055416,-150.0,0.00010996,2]
[333160409,1721895055425,-150.0,0.00010996,2]
[333160410,1721895055436,-805.4,0.00010996,2]
[333160411,1721895055446,-805.4,0.00010996,2]
[333160412,1721895055455,-500.0,0.00010996,2]
[333160413,1721895055465,-395.66,0.00010996,2]
[333160414,1721895055474,-1431.8,0.00010996,2]
[333160415,1721895055484,-1431.8,0.00010996,2]
[333160416,1721895055494,-515.63,0.00010996,2]
[333160417,1721895055504,-515.63,0.00010996,2]
[333160418,1721895055514,-500.0,0.00010996,2]
[333160419,1721895055524,-561.15,0.00010996,2]
[333160420,1721895055536,-500.0,0.00010996,2]
[333160421,1721895055546,-500.0,0.00010996,2]
[333160422,1721895055557,-1498.81,0.00010996,2]
[333160423,1721895055567,-1498.81,0.00010996,2]
[333160424,1721895055576,-1306.88,0.00010996,2]
[333160425,1721895055587,-1306.88,0.00010996,2]
[333160426,1721895055596,-500.0,0.00010996,2]
[333160427,1721895055606,-500.0,0.00010996,2]
[333160428,1721895055616,-2345.74,0.00010996,2]
[333160429,1721895055627,-2345.74,0.00010996,2]
[333160430,1721895055637,-1335.96,0.00010996,2]
[333160431,1721895055647,-1335.96,0.00010996,2]
[333160432,1721895055657,-737.33,0.00010996,2]
[333160433,1721895055666,-737.33,0.00010996,2]
[333160434,1721895055676,-500.0,0.00010996,2]
[333160435,1721895055686,-500.0,0.00010996,2]
[333160436,1721895055696,-500.0,0.00010996,2]
[333160437,1721895055706,-500.0,0.00010996,2]
[333160438,1721895055716,-1719.81,0.00010996,2]
[333160439,1721895055727,-1719.81,0.00010996,2]
[333160440,1721895055737,-500.0,0.00010996,2]
[333160441,1721895055746,-500.0,0.00010996,2]
[333160442,1721895055756,-500.0,0.00010996,2]
[333160443,1721895055766,-500.0,0.00010996,2]
[333160444,1721895055776,-500.0,0.00010996,2]
[333160445,1721895055785,-500.0,0.00010996,2]
[333160446,1721895055795,-765.91,0.00010996,2]
[333160447,1721895055806,-500.0,0.00010996,2]
[333160448,1721895055815,-500.0,0.00010996,2]
[333160449,1721895055825,-500.0,0.00010996,2]
[333160450,1721895055835,-500.0,0.00010996,2]
[333160451,1721895055845,-500.0,0.00010996,2]
[333160452,1721895055854,-735.78,0.00010996,2]
[333160453,1721895055864,-501.46,0.00010996,2]
[333160454,1721895055875,-500.0,0.00010996,2]
[333160455,1721895055885,-500.0,0.00010996,2]
[333160456,1721895055896,-1483.62,0.00010996,2]
[333160457,1721895055906,-1483.62,0.00010996,2]
[333160458,1721895055916,-1679.07,0.00010996,2]
[333160459,1721895055927,-590.68,0.00010996,2]
[333160460,1721895055937,-500.0,0.00010996,2]
[333160461,1721895055947,-460.43657359,0.00010996,2]
[333160462,1721895055957,-2884.54,0.00010996,2]
[333160463,1721895055967,-2884.54,0.00010996,2]
[333160464,1721895055977,-859.54,0.00010996,2]
[333160465,1721895055988,-859.54,0.00010996,2]
[333160466,1721895055998,-1323.5,0.00010996,2]
[333160467,1721895056009,-500.0,0.00010996,2]
[333160468,1721895056018,-1323.5,0.00010996,2]
[333160469,1721895056028,-2567.81,0.00010996,2]
[333160470,1721895056038,-500.0,0.00010996,2]
[333160471,1721895056047,-500.0,0.00010996,2]
[333160472,1721895056056,-500.0,0.00010996,2]
[333160473,1721895056066,-500.0,0.00010996,2]
[333160474,1721895056076,-500.0,0.00010996,2]
[333160475,1721895056086,-826.46,0.00010996,2]
[333160476,1721895056096,-500.0,0.00010996,2]
[333160477,1721895056105,-500.0,0.00010996,2]
[333160478,1721895056118,-500.0,0.00010996,2]
[333160479,1721895056130,-500.0,0.00010996,2]
[333160480,1721895056140,-500.0,0.00010996,2]
[333160481,1721895056151,-500.0,0.00010996,2]
[333160482,1721895056162,-563.89,0.00010996,2]
[333160483,1721895056172,-500.0,0.00010996,2]
[333160484,1721895056182,-828.51,0.00010996,2]
[333160485,1721895056194,-500.0,0.00010996,2]
[333160486,1721895056204,-500.0,0.00010996,2]
[333160487,1721895056214,-500.0,0.00010996,2]
[333160488,1721895056224,-500.0,0.00010996,2]
[333160489,1721895056234,-500.0,0.00010996,2]
[333160490,1721895056244,-500.0,0.00010996,2]
[333160491,1721895056254,-500.0,0.00010996,2]
[333160492,1721895056263,-1105.73,0.00010996,2]
[333160493,1721895056272,-611.64,0.00010996,2]
[333160494,1721895056283,-500.0,0.00010996,2]
[333160495,1721895056292,-500.0,0.00010996,2]
[333160496,1721895056302,-500.0,0.00010996,2]
[333160497,1721895056312,-500.0,0.00010996,2]
[333160498,1721895056322,-7756.09,0.00010996,2]
[333160499,1721895056332,-500.0,0.00010996,2]
[333160500,1721895056342,-500.0,0.00010996,2]
[333160501,1721895056352,-1001.5,0.00010996,2]
[333160502,1721895056363,-1001.5,0.00010996,2]
[333160503,1721895056374,-500.0,0.00010996,2]
[333160504,1721895056384,-500.0,0.00010996,2]
[333160505,1721895056394,-500.0,0.00010996,2]
[333160506,1721895056405,-500.0,0.00010996,2]
[333160507,1721895056415,-1166.69,0.00010996,2]
[333160508,1721895056425,-500.0,0.00010996,2]
[333160509,1721895056435,-1166.69,0.00010996,2]
[333160510,1721895056446,-500.0,0.00010996,2]
[333160511,1721895056456,-3176.77,0.00010996,2]
[333160512,1721895056466,-500.0,0.00010996,2]
[333160513,1721895056475,-500.0,0.00010996,2]
[333160514,1721895056485,-500.0,0.00010996,2]
[333160515,1721895056495,-1086.82,0.00010996,2]
[333160516,1721895056505,-500.0,0.00010996,2]
[333160517,1721895056515,-500.0,0.00010996,2]
[333160518,1721895056525,-500.0,0.00010996,2]
[333160519,1721895056535,-500.0,0.00010996,2]
[333160520,1721895056545,-825.37,0.00010996,2]
[333160521,1721895056554,-825.37,0.00010996,2]
[333160522,1721895056564,-500.0,0.00010996,2]
[333160523,1721895056573,-500.0,0.00010996,2]
[333160524,1721895056583,-500.0,0.00010996,2]
[333160525,1721895056593,-501.56687449,0.00010996,2]
[333160526,1721895056603,-500.0,0.00010996,2]
[333160527,1721895056613,-500.0,0.00010996,2]
[333160528,1721895056622,-500.0,0.00010996,2]
[333160529,1721895056634,-500.0,0.00010996,2]
[333160530,1721895056644,-1572.32,0.00010996,2]
[333160531,1721895056654,-500.0,0.00010996,2]
[333160532,1721895056664,-500.0,0.00010996,2]
[333160533,1721895056675,-500.0,0.00010996,2]
[333160534,1721895056685,-500.92,0.00010996,2]
[333160535,1721895056695,-896.85,0.00010996,2]
[333160536,1721895056705,-500.0,0.00010996,2]
[333160537,1721895056715,-500.0,0.00010996,2]
[333160538,1721895056725,-500.0,0.00010996,2]
[333160539,1721895056735,-500.0,0.00010996,2]
[333160540,1721895056745,-2636.17,0.00010996,2]
[333160541,1721895056755,-500.0,0.00010996,2]
[333160542,1721895056766,-589.31,0.00010996,2]
[333160543,1721895056776,-1454.16,0.00010996,2]
[333160544,1721895056786,-589.31,0.00010996,2]
[333160545,1721895056796,-500.0,0.00010996,2]
[333160546,1721895056806,-500.0,0.00010996,2]
[333160547,1721895056816,-565.08,0.00010996,2]
[333160548,1721895056827,-500.0,0.00010996,2]
[333160549,1721895056837,-500.0,0.00010996,2]
[333160550,1721895056847,-555.33,0.00010996,2]
[333160551,1721895056857,-1663.27,0.00010996,2]
[333160552,1721895056866,-932.58,0.00010996,2]
[333160553,1721895056878,-500.0,0.00010996,2]
[333160554,1721895056888,-910.05,0.00010996,2]
[333160555,1721895056898,-1707.1,0.00010996,2]
[333160556,1721895056908,-781.66,0.00010996,2]
[333160557,1721895056919,-781.66,0.00010996,2]
[333160558,1721895056929,-500.0,0.00010996,2]
[333160559,1721895056939,-500.0,0.00010996,2]
[333160560,1721895056949,-500.0,0.00010996,2]
[333160561,1721895056959,-500.0,0.00010996,2]
[333160562,1721895056969,-500.0,0.00010996,2]
[333160563,1721895056985,-500.0,0.00010996,2]
[333160564,1721895056995,-1232.44,0.00010996,2]
[333160565,1721895057006,-166.21592106,0.00010996,2]
[333160566,1721895057016,-262.161,0.00010997,2]
[333160567,1721895057026,-150.0,0.00010997,2]
[333160568,1721895057036,-162.679,0.00010997,2]
[333160569,1721895057046,-151.904,0.00010997,2]
[333160570,1721895057056,-155.205,0.00010997,2]
[333160571,1721895057066,-247.271,0.00010997,2]
[333160572,1721895057241,-500.0,0.00010997,2]
[333160573,1721895057251,-545.06,0.00010997,2]
[333160574,1721895057260,-151.0,0.00010997,2]
[333160575,1721895057270,-959.5,0.00010997,2]
[333160576,1721895057279,-959.5,0.00010997,2]
[333160577,1721895057289,-1117.95,0.00010997,2]
[333160578,1721895057298,-1117.95,0.00010997,2]
[333160579,1721895057307,-756.46,0.00010997,2]
[333160580,1721895057317,-756.46,0.00010997,2]
[333160581,1721895057329,-1190.2,0.00010997,2]
[333160582,1721895057339,-1190.2,0.00010997,2]
[333160583,1721895057349,-636.51,0.00010997,2]
[333160584,1721895057358,-636.51,0.00010997,2]
[333160585,1721895057368,-805.4,0.00010997,2]
[333160586,1721895057380,-805.4,0.00010997,2]
[333160587,1721895057390,-805.4,0.00010997,2]
[333160588,1721895057399,-805.4,0.00010997,2]
[333160589,1721895057409,-805.4,0.00010997,2]
[333160590,1721895057418,-805.47434854,0.00010997,2]
[333160591,1721895057428,-1431.8,0.00010997,2]
[333160592,1721895057437,-1431.8,0.00010997,2]
[333160593,1721895057446,-1431.8,0.00010997,2]
[333160594,1721895057456,-1431.8,0.00010997,2]
[333160595,1721895057465,-1431.8,0.00010997,2]
[333160596,1721895057475,-1432.03953803,0.00010997,2]
[333160597,1721895057484,-515.63,0.00010997,2]
[333160598,1721895057495,-515.63,0.00010997,2]
[333160599,1721895057504,-300.44337088,0.00010997,2]
[333160600,1721895057514,-1498.81,0.00010997,2]
[333160601,1721895057525,-1498.81,0.00010997,2]
[333160602,1721895057536,-1306.88,0.00010997,2]
[333160603,1721895057546,-1306.88,0.00010997,2]
[333160604,1721895057557,-1306.88,0.00010997,2]
[333160605,1721895057566,-1306.88,0.00010997,2]
[333160606,1721895057575,-1306.88,0.00010997,2]
[333160607,1721895057584,-1306.91966528,0.00010997,2]
[333160608,1721895057593,-2345.74,0.00010997,2]
[333160609,1721895057603,-2345.74,0.00010997,2]
[333160610,1721895057612,-2345.74,0.00010997,2]
[333160611,1721895057621,-2345.74,0.00010997,2]
[333160612,1721895057634,-2345.74,0.00010997,2]
[333160613,1721895057643,-2345.86895951,0.00010997,2]
[333160614,1721895057652,-737.33,0.00010997,2]
[333160615,1721895057661,-737.33,0.00010997,2]
[333160616,1721895057671,-737.33,0.00010997,2]
[333160617,1721895057680,-737.33,0.00010997,2]
[333160618,1721895057690,-737.33,0.00010997,2]
[333160619,1721895057699,-737.33,0.00010997,2]
[333160620,1721895057709,-1719.81,0.00010997,2]
[333160621,1721895057718,-1719.81,0.00010997,2]
[333160622,1721895057728,-1719.81,0.00010997,2]
[333160623,1721895057737,-1719.81,0.00010997,2]
[333160624,1721895057746,-1719.81,0.00010997,2]
[333160625,1721895057756,-1719.87,0.00010997,2]
[333160626,1721895057766,-765.91,0.00010997,2]
[333160627,1721895057775,-500.0,0.00010997,2]
[333160628,1721895057785,-735.78,0.00010997,2]
[333160629,1721895057794,-501.46,0.00010997,2]
[333160630,1721895057803,-500.0,0.00010997,2]
[333160631,1721895057813,-500.0,0.00010997,2]
[333160632,1721895057822,-826.46,0.00010997,2]
[333160633,1721895057831,-500.0,0.00010997,2]
[333160634,1721895057841,-563.89,0.00010997,2]
[333160635,1721895057850,-1105.73,0.00010997,2]
[333160636,1721895057859,-611.64,0.00010997,2]
[333160637,1721895057869,-7756.09,0.00010997,2]
[333160638,1721895057880,-3176.77,0.00010997,2]
[333160639,1721895057890,-500.0,0.00010997,2]
[333160640,1721895057899,-1086.82,0.00010997,2]
[333160641,1721895057909,-500.0,0.00010997,2]
[333160642,1721895057918,-500.0,0.00010997,2]
[333160643,1721895057928,-500.0,0.00010997,2]
[333160644,1721895057937,-500.0,0.00010997,2]
[333160645,1721895057946,-450.0,0.00010997,2]
[333160646,1721895057956,-810.0,0.00010997,2]
[333160647,1721895057965,-621.0,0.00010997,2]
[333160648,1721895057975,-445.0,0.00010997,2]
[333160649,1721895057984,-184.068,0.00010997,2]
[333160650,1721895057993,-549.0,0.00010997,2]
[333160651,1721895058003,-1537.51,0.00010997,2]
[333160652,1721895058012,-1994.0,0.00010997,2]
[333160653,1721895058022,-1163.51144742,0.00010997,2]
[333160654,1721895058031,-174.512772,0.00010998,2]
[333160655,1721895058040,-959.5,0.00010998,2]
[333160656,1721895058050,-959.5,0.00010998,2]
[333160657,1721895058059,-959.5,0.00010998,2]
[333160658,1721895058069,-959.5,0.00010998,2]
[333160659,1721895058078,-959.68789662,0.00010998,2]
[333160660,1721895058087,-1117.95,0.00010998,2]
[333160661,1721895058096,-1117.95,0.00010998,2]
[333160662,1721895058105,-1117.95,0.00010998,2]
[333160663,1721895058115,-1117.95,0.00010998,2]
[333160664,1721895058130,-1117.97496668,0.00010998,2]
[333160665,1721895058139,-756.46,0.00010998,2]
[333160666,1721895058148,-756.46,0.00010998,2]
[333160667,1721895058157,-756.46,0.00010998,2]
[333160668,1721895058166,-756.46,0.00010998,2]
[333160669,1721895058176,-756.64940934,0.00010998,2]
[333160670,1721895058186,-1190.2,0.00010998,2]
[333160671,1721895058196,-1190.2,0.00010998,2]
[333160672,1721895058207,-1190.2,0.00010998,2]
[333160673,1721895058219,-1190.2,0.00010998,2]
[333160674,1721895058228,-1190.29314919,0.00010998,2]
[333160675,1721895058238,-500.0,0.00010998,2]
[333160676,1721895058248,-636.51,0.00010998,2]
[333160677,1721895058258,-636.51,0.00010998,2]
[333160678,1721895058268,-636.51,0.00010998,2]
[333160679,1721895058277,-636.51,0.00010998,2]
[333160680,1721895058287,-636.64027793,0.00010998,2]
[333160681,1721895058296,-150.0,0.00010998,2]
[333160682,1721895058307,-515.63,0.00010998,2]
[333160683,1721895058317,-515.63,0.00010998,2]
[333160684,1721895058327,-515.63,0.00010998,2]
[333160685,1721895058337,-515.63,0.00010998,2]
[333160686,1721895058348,-515.83,0.00010998,2]
[333160687,1721895058357,-1498.81,0.00010998,2]
[333160688,1721895058367,-1498.81,0.00010998,2]
[333160689,1721895058378,-1498.81,0.00010998,2]
[333160690,1721895058388,-1498.81,0.00010998,2]
[333160691,1721895058398,-1498.8229571,0.00010998,2]
[333160692,1721895058407,-171.76307016,0.00010998,2]
[333160693,1721895058418,-1335.96,0.00010998,2]
[333160694,1721895058428,-500.0,0.00010998,2]
[333160695,1721895058437,-500.0,0.00010998,2]
[333160696,1721895058447,-500.0,0.00010998,2]
[333160697,1721895058457,-500.0,0.00010998,2]
[333160698,1721895058468,-500.0,0.00010998,2]
[333160699,1721895058477,-500.0,0.00010998,2]
[333160700,1721895058487,-500.0,0.00010998,2]
[333160701,1721895058497,-539.18,0.00010998,2]
[333160702,1721895058506,-1483.62,0.00010998,2]
[333160703,1721895058516,-1679.07,0.00010998,2]
[333160704,1721895058526,-1679.07,0.00010998,2]
[333160705,1721895058536,-2884.54,0.00010998,2]
[333160706,1721895058546,-859.54,0.00010998,2]
[333160707,1721895058556,-1323.5,0.00010998,2]
[333160708,1721895058566,-2567.81,0.00010998,2]
[333160709,1721895058577,-2567.81,0.00010998,2]
[333160710,1721895058587,-500.0,0.00010998,2]
[333160711,1721895058597,-500.0,0.00010998,2]
[333160712,1721895058606,-500.0,0.00010998,2]
[333160713,1721895058617,-500.0,0.00010998,2]
[333160714,1721895058628,-500.0,0.00010998,2]
[333160715,1721895058638,-500.0,0.00010998,2]
[333160716,1721895058648,-500.0,0.00010998,2]
[333160717,1721895058658,-500.0,0.00010998,2]
[333160718,1721895058668,-500.0,0.00010998,2]
[333160719,1721895058677,-500.0,0.00010998,2]
[333160720,1721895058687,-500.0,0.00010998,2]
[333160721,1721895058696,-828.51,0.00010998,2]
[333160722,1721895058706,-828.51,0.00010998,2]
[333160723,1721895058716,-500.0,0.00010998,2]
[333160724,1721895058726,-500.0,0.00010998,2]
[333160725,1721895058735,-390.58,0.00010998,2]
[333160726,1721895058745,-500.0,0.00010998,2]
[333160727,1721895058755,-500.0,0.00010998,2]
[333160728,1721895058764,-500.0,0.00010998,2]
[333160729,1721895058773,-500.0,0.00010998,2]
[333160730,1721895058783,-500.0,0.00010998,2]
[333160731,1721895058793,-500.0,0.00010998,2]
[333160732,1721895058802,-500.0,0.00010998,2]
[333160733,1721895058811,-500.0,0.00010998,2]
[333160734,1721895058821,-500.0,0.00010998,2]
[333160735,1721895058831,-500.0,0.00010998,2]
[333160736,1721895058841,-500.0,0.00010998,2]
[333160737,1721895058851,-154.81,0.00010998,2]
[333160738,1721895058861,-1001.5,0.00010998,2]
[333160739,1721895058871,-500.0,0.00010998,2]
[333160740,1721895058882,-500.0,0.00010998,2]
[333160741,1721895058891,-500.0,0.00010998,2]
[333160742,1721895058901,-500.0,0.00010998,2]
[333160743,1721895058910,-588.28,0.00010998,2]
[333160744,1721895058921,-500.0,0.00010998,2]
[333160745,1721895058930,-500.0,0.00010998,2]
[333160746,1721895058940,-1166.69,0.00010998,2]
[333160747,1721895058950,-500.0,0.00010998,2]
[333160748,1721895058960,-500.0,0.00010998,2]
[333160749,1721895058969,-500.0,0.00010998,2]
[333160750,1721895058979,-500.0,0.00010998,2]
[333160751,1721895058989,-500.0,0.00010998,2]
[333160752,1721895058999,-500.0,0.00010998,2]
[333160753,1721895059008,-500.0,0.00010998,2]
[333160754,1721895059018,-500.0,0.00010998,2]
[333160755,1721895059027,-500.0,0.00010998,2]
[333160756,1721895059037,-500.0,0.00010998,2]
[333160757,1721895059046,-500.0,0.00010998,2]
[333160758,1721895059056,-500.0,0.00010998,2]
[333160759,1721895059065,-500.0,0.00010998,2]
[333160760,1721895059075,-500.0,0.00010998,2]
[333160761,1721895059084,-500.0,0.00010998,2]
[333160762,1721895059093,-500.0,0.00010998,2]
[333160763,1721895059103,-825.37,0.00010998,2]
[333160764,1721895059113,-500.0,0.00010998,2]
[333160765,1721895059127,-500.0,0.00010998,2]
[333160766,1721895059136,-632.92,0.00010998,2]
[333160767,1721895059146,-1572.32,0.00010998,2]
[333160768,1721895059155,-1572.32,0.00010998,2]
[333160769,1721895059165,-500.0,0.00010998,2]
[333160770,1721895059175,-500.0,0.00010998,2]
[333160771,1721895059184,-500.0,0.00010998,2]
[333160772,1721895059193,-451.88,0.00010998,2]
[333160773,1721895059204,-500.92,0.00010998,2]
[333160774,1721895059214,-896.85,0.00010998,2]
[333160775,1721895059223,-500.92,0.00010998,2]
[333160776,1721895059233,-896.85,0.00010998,2]
[333160777,1721895059242,-500.0,0.00010998,2]
[333160778,1721895059252,-500.0,0.00010998,2]
[333160779,1721895059261,-500.0,0.00010998,2]
[333160780,1721895059271,-500.0,0.00010998,2]
[333160781,1721895059280,-2636.17,0.00010998,2]
[333160782,1721895059290,-2636.17,0.00010998,2]
[333160783,1721895059299,-500.0,0.00010998,2]
[333160784,1721895059308,-500.0,0.00010998,2]
[333160785,1721895059318,-500.0,0.00010998,2]
[333160786,1721895059328,-1454.16,0.00010998,2]
[333160787,1721895059337,-1454.16,0.00010998,2]
[333160788,1721895059346,-589.31,0.00010998,2]
[333160789,1721895059355,-500.0,0.00010998,2]
[333160790,1721895059365,-500.0,0.00010998,2]
[333160791,1721895059375,-500.0,0.00010998,2]
[333160792,1721895059385,-565.08,0.00010998,2]
[333160793,1721895059395,-500.0,0.00010998,2]
[333160794,1721895059404,-565.08,0.00010998,2]
[333160795,1721895059413,-500.0,0.00010998,2]
[333160796,1721895059422,-565.08,0.00010998,2]
[333160797,1721895059432,-500.0,0.00010998,2]
[333160798,1721895059442,-500.0,0.00010998,2]
[333160799,1721895059451,-555.33,0.00010998,2]
[333160800,1721895059460,-555.33,0.00010998,2]
[333160801,1721895059469,-1663.27,0.00010998,2]
[333160802,1721895059478,-1663.27,0.00010998,2]
[333160803,1721895059487,-1663.27,0.00010998,2]
[333160804,1721895059497,-932.58,0.00010998,2]
[333160805,1721895059506,-932.58,0.00010998,2]
[333160806,1721895059515,-500.0,0.00010998,2]
[333160807,1721895059524,-500.0,0.00010998,2]
[333160808,1721895059533,-910.05,0.00010998,2]
[333160809,1721895059591,-500.0,0.00010998,2]
[333160810,1721895059600,-910.05,0.00010998,2]
[333160811,1721895059609,-910.05,0.00010998,2]
[333160812,1721895059619,-1707.1,0.00010998,2]
[333160813,1721895059631,-1707.1,0.00010998,2]
[333160814,1721895059641,-781.66,0.00010998,2]
[333160815,1721895059651,-500.0,0.00010998,2]
[333160816,1721895059660,-500.0,0.00010998,2]
[333160817,1721895059670,-500.0,0.00010998,2]
[333160818,1721895059679,-500.0,0.00010998,2]
[333160819,1721895059688,-500.0,0.00010998,2]
[333160820,1721895059697,-500.0,0.00010998,2]
[333160821,1721895059706,-500.0,0.00010998,2]
[333160822,1721895059716,-1232.44,0.00010998,2]
[333160823,1721895059725,-500.0,0.00010998,2]
[333160824,1721895059734,-1232.44,0.00010998,2]
[333160825,1721895059743,-8686.67134752,0.00010999,2]
[333160826,1721895059752,-3737.3938034,0.00010999,2]
[333160827,1721895059763,-8500.0,0.00010999,2]
[333160828,1721895059772,-500.0,0.00010999,2]
[333160829,1721895059781,-500.0,0.00010999,2]
[333160830,1721895059790,-560.73,0.00010999,2]
[333160831,1721895059800,-150.0,0.00010999,2]
[333160832,1721895059809,-150.0,0.00010999,2]
[333160833,1721895059819,-150.0,0.00010999,2]
[333160834,1721895059828,-150.0,0.00010999,2]
[333160835,1721895059837,-150.0,0.00010999,2]
[333160836,1721895059847,-150.0,0.00010999,2]
[333160837,1721895059856,-150.0,0.00010999,2]
[333160838,1721895059865,-150.0,0.00010999,2]
[333160839,1721895059876,-193.31,0.00010999,2]
[333160840,1721895059885,-1335.96,0.00010999,2]
[333160841,1721895059894,-1335.96,0.00010999,2]
[333160842,1721895059903,-1335.96,0.00010999,2]
[333160843,1721895059913,-1335.96,0.00010999,2]
[333160844,1721895059922,-1335.96,0.00010999,2]
[333160845,1721895059931,-1335.96,0.00010999,2]
[333160846,1721895059940,-1335.96,0.00010999,2]
[333160847,1721895059949,-1335.96,0.00010999,2]
[333160848,1721895059958,-1335.96,0.00010999,2]
[333160849,1721895059967,-1335.96,0.00010999,2]
[333160850,1721895059976,-1335.96,0.00010999,2]
[333160851,1721895059984,-1335.96,0.00010999,2]
[333160852,1721895059993,-1335.96,0.00010999,2]
[333160853,1721895060002,-1336.13570349,0.00010999,2]
[333160854,1721895060012,-300.08,0.00010999,2]
[333160855,1721895060021,-500.0,0.00010999,2]
[333160856,1721895060031,-500.0,0.00010999,2]
[333160857,1721895060040,-500.0,0.00010999,2]
[333160858,1721895060050,-344.37650461,0.00010999,2]
[333160859,1721895060060,-500.0,0.00010999,2]
[333160860,1721895060070,-500.0,0.00010999,2]
[333160861,1721895060080,-500.0,0.00010999,2]
[333160862,1721895060090,-500.0,0.00010999,2]